[Event "SVK ECo-C Extraliga 2018-19"]
[Site "Slovakia"]
[Date "2018.11.11"]
[Round "2"]
[White "Vass, Frantisek"]
[Black "Czebe, Attila"]
[Result "0-1"]
[ECO "A48"]
[WhiteElo "2324"]
[BlackElo "2401"]
[Annotator "NA"]
[PlyCount "106"]
[EventDate "2018.11.10"]
[EventType "team-tourn"]
[EventCountry "SVK"]
[SourceTitle "playchess.com"]
[Source "ChessBase"]
[SourceQuality "1"]
[WhiteTeam "Podhajska"]
[BlackTeam "Streda"]
[TimeControl "40/5400+30:1800+30"]

1. d4 {[%emt 0:00:00]} Nf6 {[%emt 0:00:00]} 2. Nf3 {[%emt 0:00:00]} g6 {[%emt 0:00:00]} 3. c4 {[%emt 0:00:09]} d6 {[%emt 0:00:02]} 4. Nc3 {[%emt 0:00:08]} Bf5 {[%emt 0:00:05]} 5. Qb3 {[%emt 0:01:44]} b6 {[%emt 0:00:13]} 6. h3 {[%emt 0:01:23]} Bg7 {[%emt 0:03:08]} 7. g4 {[%emt 0:00:22]} Bd7 {[%emt 0:01:44]} 8. Bg2 {[%emt 0:02:41]} Nc6 {[%emt 0:00:45]} 9. Qc2 {[%emt 0:04:52]} a6 {[%emt 0:07:00]} 10. Bg5 {[%emt 0:05:01]} h5 {[%emt 0:01:42]} 11. gxh5 {[%emt 0:00:12]} Nxh5 {[%emt 0:00:13]} 12. Qd2 {[%emt 0:00:37]} Qb8 {[%emt 0:02:38]} 13. b3 {[%emt 0:12:57]} b5 {[%emt 0:03:48]} 14. Rc1 {[%emt 0:08:45]} bxc4 {[%emt 0:02:34]} 15. bxc4 {[%emt 0:00:06]} Ra7 {[%emt 0:10:36]} 16. Nd5 {[%emt 0:24:09]} Rb7 {[%emt 0:01:59]} 17. Qe3 {[%emt 0:01:22]} O-O {[%emt 0:16:39]} 18. O-O {[%emt 0:14:23]} Re8 {[%emt 0:05:36]} 19. Nf4 {[%emt 0:12:33]} Nxf4 {[%emt 0:01:07]} 20. Qxf4 {[%emt 0:02:45]} e5 {[%emt 0:02:35]} 21. dxe5 {[%emt 0:00:55]} dxe5 {[%emt 0:00:14]} 22. Qe4 {[%emt 0:01:03]} Rb6 {[%emt 0:00:41]} 23. c5 {[%emt 0:00:25]} Rb4 {[%emt 0:03:52]} 24. Qd5 {[%emt 0:01:32]} Qc8 {[%emt 0:00:09]} 25. Kh2 {[%emt 0:03:44]} e4 {[%emt 0:01:08]} 26. Ng1 {[%emt 0:00:07]} Bd4 {[%emt 0:11:21]} 27. Bf4 {[%emt 0:00:40]} Ne7 {[%emt 0:00:13]} 28. Qxe4 {[%emt 0:00:45]} Bc6 {[%emt 0:00:38]} 29. Qd3 {[%emt 0:00:10]} Bxg2 {[%emt 0:02:00]} 30. Kxg2 {[%emt 0:00:01]} Qe6 {[%emt 0:01:36]} 31. a3 {[%emt 0:00:54]} Ra4 {[%emt 0:01:00]} 32. Rc2 {[%emt 0:00:40]} Nf5 {[%emt 0:00:39]} 33. Nf3 {[%emt 0:00:05]} Bxf2 {[%emt 0:00:53]} 34. Rxf2 {[%emt 0:01:04]} Rxf4 {[%emt 0:00:08]} 35. Kh2 {[%emt 0:00:20]} Qe3 {[%emt 0:06:37]} 36. Qxe3 {[%emt 0:00:43]} Rxe3 {[%emt 0:00:07]} 37. Ra2 {[%emt 0:00:28]} Rc3 {[%emt 0:00:26]} 38. Rf1 {[%emt 0:00:32]} Rxc5 {[%emt 0:00:36]} 39. Rd1 {[%emt 0:00:06]} Re4 {[%emt 0:01:50]} 40. Rd7 {[%emt 0:00:14]} Nd6 {[%emt 0:01:40]} 41. Kg2 {[%emt 0:07:20]} Kf8 {[%emt 0:01:02]} 42. Rd8+ {[%emt 0:00:11]} Ke7 {[%emt 0:00:06]} 43. Ra8 {[%emt 0:00:11]} Ra4 {[%emt 0:00:51]} 44. Ne1 {[%emt 0:05:15]} a5 {[%emt 0:15:02]} 45. Nd3 {[%emt 0:08:08]} Rg5+ {[%emt 0:00:17]} 46. Kf3 {[%emt 0:00:56]} Rh4 {[%emt 0:01:12]} 47. Nf2 {[%emt 0:00:21]} Nf5 {[%emt 0:02:48]} 48. e4 {[%emt 0:04:01]} Rg3+ {[%emt 0:00:56]} 49. Ke2 {[%emt 0:00:03]} Nd4+ {[%emt 0:00:21]} 50. Kf1 {[%emt 0:00:33]} Rh5 {[%emt 0:02:04]} 51. Rd2 {[%emt 0:00:57]} Ne6 {[%emt 0:00:06]} 52. Rd5 {[%emt 0:08:31]} Rxa3 {[%emt 0:00:14]} 53. Ra7 {[%emt 0:00:21]} Ra1+ {[%emt 0:04:36]} 0-1

[Event "SVK ECo-C Extraliga 2018-19"]
[Site "Slovakia"]
[Date "2018.11.11"]
[Round "2"]
[White "Vojtek, Vladimir"]
[Black "Schwarz, Dusan"]
[Result "1/2-1/2"]
[ECO "D04"]
[WhiteElo "2316"]
[BlackElo "2313"]
[Annotator "NA"]
[PlyCount "86"]
[EventDate "2018.11.10"]
[EventType "team-tourn"]
[EventCountry "SVK"]
[SourceTitle "playchess.com"]
[Source "ChessBase"]
[SourceQuality "1"]
[WhiteTeam "Dubnica"]
[BlackTeam "Modra"]
[TimeControl "40/5400+30:1800+30"]

1. d4 {[%emt 0:00:00]} d5 {[%emt 0:00:00]} 2. Nf3 {[%emt 0:00:00]} Nf6 {[%emt 0:00:00]} 3. e3 {[%emt 0:01:01]} c5 {[%emt 0:00:14]} 4. c4 {[%emt 0:01:47]} e6 {[%emt 0:01:53]} 5. Nc3 {[%emt 0:00:34]} Nc6 {[%emt 0:00:22]} 6. a3 {[%emt 0:00:37]} a6 {[%emt 0:02:03]} 7. dxc5 {[%emt 0:01:09]} Bxc5 {[%emt 0:01:33]} 8. b4 {[%emt 0:00:29]} Bd6 {[%emt 0:01:24]} 9. Bb2 {[%emt 0:01:38]} O-O {[%emt 0:00:49]} 10. cxd5 {[%emt 0:11:08]} exd5 {[%emt 0:00:25]} 11. Be2 {[%emt 0:00:17]} Re8 {[%emt 0:02:43]} 12. O-O {[%emt 0:01:09]} Bc7 $14 {[%emt 0:13:22]} 13. b5 {[%emt 0:13:29]} Ne5 {[%emt 0:03:19]} 14. Nxe5 {[%emt 0:01:44]} Bxe5 {[%emt 0:00:42]} 15. Na4 {[%emt 0:05:59]} Bxb2 {[%emt 0:19:25]} 16. Nxb2 {[%emt 0:00:04]} Bd7 {[%emt 0:00:37]} 17. bxa6 {[%emt 0:17:45]} bxa6 {[%emt 0:00:12]} 18. Bf3 {[%emt 0:00:37]} Qb6 {[%emt 0:10:51]} 19. Nd3 {[%emt 0:08:35]} Rad8 {[%emt 0:00:39]} 20. Rb1 {[%emt 0:10:18]} Qd6 {[%emt 0:01:18]} 21. Nb4 {[%emt 0:03:01]} Bb5 {[%emt 0:08:25]} 22. Re1 {[%emt 0:04:19]} d4 {[%emt 0:06:35]} 23. a4 {[%emt 0:03:53]} Bd7 {[%emt 0:05:37]} 24. Qxd4 {[%emt 0:03:53]} Qxd4 {[%emt 0:04:17]} 25. exd4 {[%emt 0:00:02]} Rxe1+ {[%emt 0:01:44]} 26. Rxe1 {[%emt 0:00:02]} Bxa4 {[%emt 0:00:29]} 27. d5 {[%emt 0:01:08]} Bb3 {[%emt 0:04:03]} 28. g4 {[%emt 0:03:52]} h6 {[%emt 0:04:17]} 29. h4 {[%emt 0:01:49]} g6 {[%emt 0:01:17]} 30. Rb1 {[%emt 0:00:25]} Bc4 {[%emt 0:01:03]} 31. Rc1 {[%emt 0:01:17]} Bb5 {[%emt 0:00:53]} 32. Rc7 {[%emt 0:02:11]} Rd7 {[%emt 0:00:35]} 33. Rc8+ {[%emt 0:00:27]} Kg7 {[%emt 0:00:12]} 34. Ra8 {[%emt 0:00:09]} Bc4 {[%emt 0:01:01]} 35. Kg2 {[%emt 0:00:52]} Rd6 {[%emt 0:02:21]} 36. Ra7 {[%emt 0:01:05]} g5 {[%emt 0:00:55]} 37. hxg5 {[%emt 0:00:41]} hxg5 {[%emt 0:00:05]} 38. Kg3 {[%emt 0:00:20]} Rd7 {[%emt 0:01:29]} 39. Ra8 {[%emt 0:00:41]} Rd6 {[%emt 0:01:03]} 40. Ra7 {[%emt 0:00:21]} Rd7 {[%emt 0:01:07]} 41. Ra8 {[%emt 0:30:56]} Rb7 {[%emt 0:05:35]} 42. Nc2 {[%emt 0:00:00]} Bxd5 {[%emt 0:03:32]} 43. Rxa6 {[%emt 0:00:00]} Bxf3 {[%emt 0:03:59]} 1/2-1/2

[Event "SVK ECo-C Extraliga 2018-19"]
[Site "Slovakia"]
[Date "2018.11.11"]
[Round "2"]
[White "Jancovic, Peter"]
[Black "Janko, Zoltan"]
[Result "0-1"]
[ECO "A48"]
[WhiteElo "2299"]
[BlackElo "2247"]
[Annotator "NA"]
[PlyCount "106"]
[EventDate "2018.11.10"]
[EventType "team-tourn"]
[EventCountry "SVK"]
[SourceTitle "playchess.com"]
[Source "ChessBase"]
[SourceQuality "1"]
[WhiteTeam "Slovan"]
[BlackTeam "Komarno"]
[TimeControl "40/5400+30:1800+30"]

1. d4 {[%emt 0:00:00]} Nf6 {[%emt 0:01:42]} 2. Nf3 {[%emt 0:00:03]} g6 {[%emt 0:00:07]} 3. Bf4 {[%emt 0:00:18]} Bg7 {[%emt 0:00:40]} 4. h3 {[%emt 0:00:14]} b6 {[%emt 0:02:12]} 5. e3 {[%emt 0:00:34]} Bb7 {[%emt 0:00:32]} 6. Bd3 {[%emt 0:01:07]} c5 {[%emt 0:02:07]} 7. O-O {[%emt 0:00:32]} O-O {[%emt 0:00:16]} 8. Nbd2 {[%emt 0:02:39]} d6 {[%emt 0:02:10]} 9. c3 {[%emt 0:00:53]} Nbd7 {[%emt 0:00:30]} 10. Bh2 {[%emt 0:03:33]} e5 {[%emt 0:03:12]} 11. dxe5 {[%emt 0:02:09]} Nxe5 {[%emt 0:04:30]} 12. Be2 {[%emt 0:16:01]} Nxf3+ {[%emt 0:04:11]} 13. Bxf3 {[%emt 0:00:47]} d5 {[%emt 0:00:41]} 14. Nc4 {[%emt 0:08:12]} Ba6 {[%emt 0:01:28]} 15. Nd6 {[%emt 0:05:21]} Bxf1 {[%emt 0:00:28]} 16. Kxf1 {[%emt 0:00:14]} Qe7 {[%emt 0:03:14]} 17. Bxd5 {[%emt 0:01:44]} Rad8 {[%emt 0:01:11]} 18. Bc6 {[%emt 0:02:09]} Qc7 {[%emt 0:04:02]} 19. Bd5 {[%emt 0:02:27]} Qe7 {[%emt 0:08:51]} 20. Bc6 {[%emt 0:06:10]} Ne8 {[%emt 0:15:11]} 21. Bxe8 {[%emt 0:00:12]} Rfxe8 {[%emt 0:00:05]} 22. Qa4 {[%emt 0:25:22]} Rf8 {[%emt 0:00:21]} 23. Qf4 {[%emt 0:00:29]} Rd7 {[%emt 0:01:57]} 24. a4 {[%emt 0:00:52]} Rfd8 {[%emt 0:01:38]} 25. Nc4 {[%emt 0:00:10]} Qe6 {[%emt 0:02:31]} 26. Ke1 {[%emt 0:06:03]} g5 {[%emt 0:03:05]} 27. Qg4 {[%emt 0:00:32]} f5 {[%emt 0:00:38]} 28. Qe2 {[%emt 0:00:06]} Rd3 {[%emt 0:02:05]} 29. Na3 {[%emt 0:02:03]} Be5 {[%emt 0:02:34]} 30. Bxe5 {[%emt 0:01:21]} Qxe5 {[%emt 0:00:05]} 31. Qh5 {[%emt 0:00:28]} f4 {[%emt 0:02:33]} 32. Nc2 {[%emt 0:05:05]} fxe3 {[%emt 0:01:46]} 33. Nxe3 {[%emt 0:00:10]} Rxe3+ {[%emt 0:00:07]} 34. fxe3 {[%emt 0:00:12]} Qxe3+ {[%emt 0:00:05]} 35. Qe2 {[%emt 0:00:17]} Qg3+ {[%emt 0:00:07]} 36. Kf1 {[%emt 0:01:23]} Qf4+ {[%emt 0:02:40]} 37. Kg1 {[%emt 0:00:51]} Rd2 {[%emt 0:02:27]} 38. Qe8+ {[%emt 0:00:42]} Qf8 {[%emt 0:01:10]} 39. Qe3 {[%emt 0:00:57]} Qf4 {[%emt 0:02:20]} 40. Qe8+ {[%emt 0:04:08]} Qf8 {[%emt 0:00:17]} 41. Re1 {[%emt 0:32:22]} Qxe8 {[%emt 0:30:56]} 42. Rxe8+ {[%emt 0:00:07]} Kf7 {[%emt 0:00:05]} 43. Ra8 {[%emt 0:00:09]} a5 {[%emt 0:00:18]} 44. b4 {[%emt 0:01:24]} axb4 {[%emt 0:01:01]} 45. cxb4 {[%emt 0:00:04]} cxb4 {[%emt 0:00:42]} 46. Rb8 {[%emt 0:01:14]} Rd6 {[%emt 0:00:30]} 47. Kh2 {[%emt 0:00:00]} b3 {[%emt 0:00:00]} 48. a5 {[%emt 0:00:00]} b2 {[%emt 0:00:00]} 49. a6 {[%emt 0:00:00]} b1=Q {[%emt 0:00:00]} 50. a7 {[%emt 0:00:00]} Qe4 {[%emt 0:00:00]} 51. a8=Q {[%emt 0:00:00]} Qf4+ {[%emt 0:00:00]} 52. g3 {[%emt 0:00:00]} Rd2+ {[%emt 0:00:00]} 53. Kh1 {[%emt 0:00:00]} Qf1# 0-1

[Event "SVK ECo-C Extraliga 2018-19"]
[Site "Slovakia"]
[Date "2018.11.11"]
[Round "2"]
[White "Kukel, Imre"]
[Black "Castiglione, Mario"]
[Result "0-1"]
[ECO "B90"]
[WhiteElo "2295"]
[BlackElo "2239"]
[Annotator "NA"]
[PlyCount "76"]
[EventDate "2018.11.10"]
[EventType "team-tourn"]
[EventCountry "SVK"]
[SourceTitle "playchess.com"]
[Source "ChessBase"]
[SourceQuality "1"]
[WhiteTeam "Komarno"]
[BlackTeam "Slovan"]
[TimeControl "40/5400+30:1800+30"]

1. e4 {[%emt 0:00:13]} c5 {[%emt 0:12:32]} 2. Nf3 {[%emt 0:00:08]} d6 {[%emt 0:00:08]} 3. d4 {[%emt 0:00:10]} cxd4 {[%emt 0:00:06]} 4. Nxd4 {[%emt 0:00:03]} Nf6 {[%emt 0:00:11]} 5. Nc3 {[%emt 0:00:04]} a6 {[%emt 0:00:17]} 6. Be3 {[%emt 0:00:04]} Ng4 {[%emt 0:00:32]} 7. Bc1 {[%emt 0:00:34]} Nf6 {[%emt 0:00:22]} 8. f3 {[%emt 0:00:04]} e6 {[%emt 0:00:59]} 9. Be3 {[%emt 0:00:09]} Qb6 {[%emt 0:01:20]} 10. Qd3 {[%emt 0:07:26]} Qxb2 {[%emt 0:19:00]} 11. Nb3 {[%emt 0:14:06]} Qa3 {[%emt 0:00:15]} 12. Be2 {[%emt 0:04:06]} Nc6 {[%emt 0:03:42]} 13. O-O {[%emt 0:02:49]} Bd7 {[%emt 0:05:44]} 14. g4 {[%emt 0:19:03]} Nb4 {[%emt 0:01:33]} 15. Qd2 {[%emt 0:00:44]} Qb2 {[%emt 0:01:40]} 16. g5 {[%emt 0:04:49]} Ng8 {[%emt 0:14:25]} 17. Rfc1 {[%emt 0:09:45]} Rc8 {[%emt 0:01:39]} 18. Bd4 {[%emt 0:06:09]} e5 {[%emt 0:05:26]} 19. Nd1 {[%emt 0:03:37]} Qa3 {[%emt 0:00:06]} 20. Bb2 {[%emt 0:05:28]} Qa4 {[%emt 0:00:05]} 21. Ne3 {[%emt 0:01:23]} h6 {[%emt 0:03:38]} 22. a3 {[%emt 0:03:18]} Nc6 {[%emt 0:02:58]} 23. Nd5 {[%emt 0:01:36]} Nce7 {[%emt 0:01:52]} 24. Nb6 {[%emt 0:00:47]} Qc6 {[%emt 0:00:06]} 25. Nxc8 {[%emt 0:00:05]} Qxc8 {[%emt 0:00:05]} 26. Qxd6 {[%emt 0:01:47]} Ng6 {[%emt 0:00:05]} 27. Qd2 {[%emt 0:01:10]} Bc5+ {[%emt 0:01:24]} 28. Kh1 {[%emt 0:00:49]} hxg5 {[%emt 0:00:39]} 29. Qxg5 {[%emt 0:01:49]} Be7 {[%emt 0:00:04]} 30. Qd2 {[%emt 0:02:11]} Bc6 {[%emt 0:00:35]} 31. Bf1 {[%emt 0:00:51]} Rh5 {[%emt 0:00:41]} 32. Re1 {[%emt 0:01:52]} Bg5 {[%emt 0:00:06]} 33. Qd6 {[%emt 0:02:54]} Bf4 {[%emt 0:00:42]} 34. Re2 {[%emt 0:00:01]} Nf6 {[%emt 0:00:38]} 35. Rd1 {[%emt 0:03:02]} Ng4 36. fxg4 {[%emt 0:00:56]} Bxe4+ {[%emt 0:01:48]} 37. Rxe4 {[%emt 0:01:43]} Rxh2+ {[%emt 0:00:08]} 38. Kg1 {[%emt 0:00:00]} Qxg4+ {[%emt 0:00:07]} 0-1

[Event "SVK ECo-C Extraliga 2018-19"]
[Site "Slovakia"]
[Date "2018.11.11"]
[Round "2"]
[White "Jakab, Bela"]
[Black "Briestensky, Rastislav"]
[Result "1/2-1/2"]
[ECO "B15"]
[WhiteElo "2290"]
[BlackElo "2331"]
[Annotator "NA"]
[PlyCount "93"]
[EventDate "2018.11.10"]
[EventType "team-tourn"]
[EventCountry "SVK"]
[SourceTitle "playchess.com"]
[Source "ChessBase"]
[SourceQuality "1"]
[WhiteTeam "Komarno"]
[BlackTeam "Slovan"]
[TimeControl "40/5400+30:1800+30"]

1. e4 {[%emt 0:00:00]} c6 {[%emt 0:00:00]} 2. d4 {[%emt 0:00:00]} d5 {[%emt 0:00:29]} 3. Nc3 {[%emt 0:00:05]} dxe4 {[%emt 0:01:16]} 4. Nxe4 {[%emt 0:00:09]} Nf6 {[%emt 0:00:05]} 5. Nxf6+ {[%emt 0:00:09]} exf6 {[%emt 0:01:36]} 6. Nf3 {[%emt 0:08:27]} Be7 {[%emt 0:06:18]} 7. h3 {[%emt 0:03:40]} O-O {[%emt 0:00:53]} 8. Bd3 {[%emt 0:01:41]} Be6 {[%emt 0:02:41]} 9. O-O {[%emt 0:01:37]} Qd6 {[%emt 0:07:45]} 10. Re1 {[%emt 0:05:32]} Bd8 $16 {[%emt 0:02:35]} 11. c4 {[%emt 0:06:41]} Bc7 {[%emt 0:01:14]} 12. Qc2 {[%emt 0:05:45]} g6 {[%emt 0:14:41]} 13. Bh6 {[%emt 0:07:17]} Rc8 {[%emt 0:07:26]} 14. Rad1 {[%emt 0:01:54]} Nd7 {[%emt 0:01:34]} 15. c5 {[%emt 0:10:58]} Qd5 {[%emt 0:04:01]} 16. Rxe6 {[%emt 0:16:50]} fxe6 {[%emt 0:01:36]} 17. Bxg6 {[%emt 0:01:13]} f5 {[%emt 0:04:35]} 18. Bh5 {[%emt 0:00:45]} Nf6 {[%emt 0:08:40]} 19. Qc1 {[%emt 0:00:41]} Nxh5 {[%emt 0:01:12]} 20. Qg5+ {[%emt 0:00:11]} Kh8 {[%emt 0:00:06]} 21. Qxh5 {[%emt 0:00:18]} Rg8 {[%emt 0:00:45]} 22. Qf7 {[%emt 0:11:37]} Bd8 {[%emt 0:06:04]} 23. Re1 {[%emt 0:01:19]} Qxf3 {[%emt 0:10:39]} 24. Qxg8+ {[%emt 0:00:06]} Kxg8 {[%emt 0:00:04]} 25. gxf3 {[%emt 0:00:04]} Kf7 {[%emt 0:00:06]} 26. Be3 {[%emt 0:01:09]} Bf6 {[%emt 0:00:23]} 27. f4 {[%emt 0:00:40]} Rd8 {[%emt 0:00:25]} 28. Rd1 {[%emt 0:00:22]} Ke7 {[%emt 0:03:31]} 29. Kf1 {[%emt 0:01:20]} b6 {[%emt 0:04:31]} 30. Rc1 {[%emt 0:04:23]} Kd7 {[%emt 0:01:16]} 31. Ke2 {[%emt 0:00:12]} Rb8 {[%emt 0:02:29]} 32. b3 {[%emt 0:01:06]} Kc7 {[%emt 0:01:08]} 33. Kd3 {[%emt 0:02:47]} Rd8 {[%emt 0:01:16]} 34. b4 {[%emt 0:00:42]} b5 {[%emt 0:01:56]} 35. a4 {[%emt 0:01:24]} bxa4 {[%emt 0:01:13]} 36. Ra1 {[%emt 0:00:12]} Kb7 {[%emt 0:00:41]} 37. Rxa4 {[%emt 0:00:28]} Rg8 {[%emt 0:00:31]} 38. Ra1 {[%emt 0:01:06]} a6 {[%emt 0:00:39]} 39. Ke2 {[%emt 0:02:06]} Ra8 {[%emt 0:01:04]} 40. Rg1 {[%emt 0:01:03]} Kc7 {[%emt 0:00:55]} 41. Kd3 {[%emt 0:30:21]} Rd8 {[%emt 0:30:25]} 42. Kc4 {[%emt 0:00:13]} Kb7 {[%emt 0:00:08]} 43. Rg3 {[%emt 0:01:02]} Kc7 {[%emt 0:00:44]} 44. Rg1 {[%emt 0:01:55]} Kb7 {[%emt 0:01:23]} 45. Rg3 {[%emt 0:01:23]} Kc7 {[%emt 0:00:32]} 46. Rg1 {[%emt 0:00:07]} Kb7 {[%emt 0:00:06]} 47. Rg3 {[%emt 0:00:37]} 1/2-1/2

[Event "SVK ECo-C Extraliga 2018-19"]
[Site "Slovakia"]
[Date "2018.11.11"]
[Round "2"]
[White "Takacs, Laszlo"]
[Black "Maslikova, Veronika"]
[Result "1-0"]
[ECO "B53"]
[WhiteElo "2275"]
[BlackElo "2249"]
[Annotator "NA"]
[PlyCount "67"]
[EventDate "2018.11.10"]
[EventType "team-tourn"]
[EventCountry "SVK"]
[SourceTitle "playchess.com"]
[Source "ChessBase"]
[SourceQuality "1"]
[WhiteTeam "Streda"]
[BlackTeam "Podhajska"]
[TimeControl "40/5400+30:1800+30"]

1. e4 {[%emt 0:00:00]} c5 {[%emt 0:00:00]} 2. Nf3 {[%emt 0:00:00]} d6 {[%emt 0:00:00]} 3. d4 {[%emt 0:00:00]} cxd4 4. Qxd4 {[%emt 0:00:00]} Nc6 {[%emt 0:02:41]} 5. Bb5 {[%emt 0:00:00]} Bd7 {[%emt 0:06:21]} 6. Bxc6 {[%emt 0:00:09]} Bxc6 {[%emt 0:00:43]} 7. c4 {[%emt 0:00:57]} Nf6 {[%emt 0:16:21]} 8. Nc3 {[%emt 0:00:45]} g6 {[%emt 0:08:45]} 9. Be3 {[%emt 0:07:41]} Bg7 {[%emt 0:02:05]} 10. h3 {[%emt 0:00:27]} O-O {[%emt 0:04:34]} 11. Qd3 {[%emt 0:01:16]} a6 {[%emt 0:12:14]} 12. Nd4 {[%emt 0:04:02]} Rc8 {[%emt 0:06:41]} 13. O-O {[%emt 0:02:57]} Qc7 {[%emt 0:06:44]} 14. Rfc1 {[%emt 0:04:48]} Qb8 {[%emt 0:05:08]} 15. Rab1 {[%emt 0:05:42]} Nd7 {[%emt 0:03:17]} 16. b4 {[%emt 0:03:35]} b6 {[%emt 0:10:25]} 17. Nd5 {[%emt 0:10:06]} Rfe8 {[%emt 0:00:46]} 18. Bg5 {[%emt 0:10:49]} Bf8 {[%emt 0:00:20]} 19. Qe3 {[%emt 0:03:54]} Ba8 {[%emt 0:02:09]} 20. f3 {[%emt 0:20:26]} Bb7 {[%emt 0:04:08]} 21. Qf2 {[%emt 0:03:02]} Ba8 {[%emt 0:00:33]} 22. Qh4 {[%emt 0:02:32]} Bxd5 {[%emt 0:03:06]} 23. cxd5 {[%emt 0:00:20]} b5 {[%emt 0:01:13]} 24. Nc6 {[%emt 0:02:54]} Qb6+ {[%emt 0:00:06]} 25. Kh1 {[%emt 0:00:16]} f6 {[%emt 0:01:02]} 26. Qg4 {[%emt 0:08:04]} Rc7 {[%emt 0:00:28]} 27. Qe6+ {[%emt 0:01:01]} Kg7 {[%emt 0:00:09]} 28. Bf4 {[%emt 0:00:54]} Rec8 {[%emt 0:02:08]} 29. Nxe7 {[%emt 0:01:44]} Bxe7 {[%emt 0:01:21]} 30. Qxe7+ {[%emt 0:00:07]} Kg8 {[%emt 0:00:10]} 31. Rxc7 {[%emt 0:01:37]} Qxc7 {[%emt 0:01:00]} 32. Rc1 {[%emt 0:00:31]} Qb7 {[%emt 0:00:15]} 33. Rxc8+ {[%emt 0:00:15]} Qxc8 {[%emt 0:00:02]} 34. Bh6 {[%emt 0:00:12]} 1-0

[Event "SVK ECo-C Extraliga 2018-19"]
[Site "Slovakia"]
[Date "2018.11.11"]
[Round "2"]
[White "Haring, Filip"]
[Black "Krak, Tomas"]
[Result "1/2-1/2"]
[ECO "B35"]
[WhiteElo "2258"]
[BlackElo "2284"]
[Annotator "NA"]
[PlyCount "155"]
[EventDate "2018.11.10"]
[EventType "team-tourn"]
[EventCountry "SVK"]
[SourceTitle "playchess.com"]
[Source "ChessBase"]
[SourceQuality "1"]
[WhiteTeam "Liptovska"]
[BlackTeam "Snina"]
[TimeControl "40/5400+30:1800+30"]

1. e4 {[%emt 0:00:00]} c5 {[%emt 0:00:00]} 2. Nf3 {[%emt 0:00:00]} Nc6 {[%emt 0:00:00]} 3. d4 {[%emt 0:00:25]} cxd4 {[%emt 0:00:00]} 4. Nxd4 {[%emt 0:00:16]} g6 {[%emt 0:00:00]} 5. Nc3 {[%emt 0:00:26]} Bg7 {[%emt 0:00:05]} 6. Be3 {[%emt 0:00:31]} Nf6 {[%emt 0:00:05]} 7. Bc4 {[%emt 0:00:38]} O-O {[%emt 0:00:07]} 8. Bb3 {[%emt 0:00:24]} d6 {[%emt 0:00:05]} 9. f3 {[%emt 0:00:38]} Bd7 {[%emt 0:00:06]} 10. Qd2 {[%emt 0:00:35]} Na5 {[%emt 0:00:16]} 11. O-O-O {[%emt 0:03:11] LiveBook: 86 Games} Nxb3+ {[%emt 0:00:22]} 12. cxb3 {[%emt 0:02:32]} Qb8 {[%emt 0:00:09]} 13. g4 {[%emt 0:03:57]} b5 {[%emt 0:00:48]} 14. g5 {[%emt 0:10:16]} b4 {[%emt 0:01:49]} 15. gxf6 {[%emt 0:14:07]} bxc3 {[%emt 0:00:44]} 16. bxc3 {[%emt 0:00:06]} Bxf6 {[%emt 0:01:35]} 17. h4 {[%emt 0:03:32]} Rc8 {[%emt 0:15:18]} 18. h5 {[%emt 0:03:30]} Qc7 {[%emt 0:02:03] [#]} ({Besser ist} 18... Qb4 $14) 19. c4 $1 {[%emt 0:05:33]} Rab8 $16 {[%emt 0:21:50]} 20. Rdg1 {[%emt 0:10:28]} e5 {[%emt 0:17:15]} 21. hxg6 {[%emt 0:01:02]} hxg6 {[%emt 0:03:50]} 22. Qh2 {[%emt 0:21:20]} exd4 {[%emt 0:07:36]} 23. Rxg6+ {[%emt 0:00:04]} fxg6 {[%emt 0:00:13]} 24. Qh7+ {[%emt 0:00:03]} Kf8 {[%emt 0:00:11]} 25. Bh6+ {[%emt 0:00:03]} Ke8 {[%emt 0:00:14]} 26. Qxg6+ {[%emt 0:00:05]} Ke7 {[%emt 0:00:07]} 27. Bg5 {[%emt 0:00:13]} Rf8 {[%emt 0:09:57]} 28. Bxf6+ {[%emt 0:02:30]} Rxf6 {[%emt 0:00:55]} 29. Rh7+ {[%emt 0:00:12]} Kd8 {[%emt 0:00:20]} 30. Qxf6+ {[%emt 0:09:37]} Kc8 {[%emt 0:00:18]} 31. Qxd4 {[%emt 0:01:06]} Qb6 {[%emt 0:07:22]} 32. Qd2 {[%emt 0:03:29]} Qc5 {[%emt 0:03:26]} 33. f4 {[%emt 0:02:50]} Kc7 {[%emt 0:02:52]} 34. e5 {[%emt 0:00:57]} Rg8 {[%emt 0:01:05]} 35. Kb2 {[%emt 0:02:03]} Rg6 {[%emt 0:02:45]} 36. Re7 {[%emt 0:00:48]} Kc8 {[%emt 0:01:49]} 37. f5 {[%emt 0:00:29]} Bxf5 {[%emt 0:00:55]} 38. exd6 {[%emt 0:00:30]} Rxd6 {[%emt 0:01:07]} 39. Qf4 {[%emt 0:00:30]} Rd1 {[%emt 0:01:15]} 40. Re8+ {[%emt 0:00:32]} Kd7 {[%emt 0:00:20]} 41. Re5 {[%emt 0:01:45]} Rb1+ {[%emt 0:02:01]} 42. Kc3 {[%emt 0:01:07]} Rc1+ {[%emt 0:00:33]} 43. Kd2 {[%emt 0:07:32]} Rc2+ {[%emt 0:05:26]} 44. Kd1 {[%emt 0:00:03]} Qg1+ {[%emt 0:01:58]} 45. Re1 {[%emt 0:00:04]} Qf2 {[%emt 0:00:41]} 46. Qxf2 {[%emt 0:08:53]} Rxf2 {[%emt 0:00:17]} 47. Re5 {[%emt 0:01:16]} Bg4+ {[%emt 0:00:32]} 48. Kc1 {[%emt 0:00:20]} Rxa2 {[%emt 0:02:45]} 49. b4 {[%emt 0:03:06]} Ra4 {[%emt 0:02:13]} 50. Ra5 {[%emt 0:00:45]} Rxb4 {[%emt 0:00:31]} 51. Rxa7+ {[%emt 0:00:08]} Kd6 {[%emt 0:00:21]} 52. Kd2 {[%emt 0:01:03]} Rxc4 {[%emt 0:00:44]} 53. Kd3 {[%emt 0:00:53]} Rc6 {[%emt 0:00:45]} 54. Rg7 {[%emt 0:00:33]} Be6 {[%emt 0:00:37]} 55. Rg5 {[%emt 0:01:00]} Rc7 {[%emt 0:01:20]} 56. Kd4 {[%emt 0:01:17]} Rc4+ {[%emt 0:00:36]} 57. Ke3 {[%emt 0:00:49]} Bd5 {[%emt 0:00:16]} 58. Rg6+ {[%emt 0:00:24]} Kc5 {[%emt 0:00:20]} 59. Rg5 {[%emt 0:00:19]} Re4+ {[%emt 0:00:35]} 60. Kd3 {[%emt 0:00:19]} Rf4 {[%emt 0:00:14]} 61. Re5 {[%emt 0:00:57]} Ra4 {[%emt 0:00:43]} 62. Ke3 {[%emt 0:00:40]} Ra3+ {[%emt 0:00:18]} 63. Kf4 {[%emt 0:00:54]} Kd4 {[%emt 0:00:10]} 64. Re8 {[%emt 0:00:21]} Rf3+ {[%emt 0:00:17]} 65. Kg4 {[%emt 0:00:39]} Rf7 {[%emt 0:00:16]} 66. Kg5 {[%emt 0:00:39]} Be4 {[%emt 0:00:23]} 67. Kg4 {[%emt 0:00:37]} Ke3 {[%emt 0:00:22]} 68. Rg8 {[%emt 0:00:58]} Rf2 {[%emt 0:01:43]} 69. Rg5 {[%emt 0:01:46]} Rf8 {[%emt 0:05:49]} 70. Rg7 {[%emt 0:00:53]} Rf1 {[%emt 0:01:40]} 71. Rg5 {[%emt 0:00:35]} Kd4 {[%emt 0:00:27]} 72. Kh4 {[%emt 0:00:48]} Bf5 {[%emt 0:00:33]} 73. Rg3 {[%emt 0:00:43]} Ke4 {[%emt 0:01:16]} 74. Kg5 {[%emt 0:00:36]} Ke5 {[%emt 0:00:16]} 75. Re3+ {[%emt 0:00:21]} Be4 {[%emt 0:00:09]} 76. Rg3 {[%emt 0:00:24]} Rf2 {[%emt 0:03:07]} 77. Rg4 {[%emt 0:00:44]} Rh2 {[%emt 0:00:56]} 78. Rg3 {[%emt 0:00:37]} 1/2-1/2